[Event "Championship of RSO-Alania 2020"]
[Site "Vladikavkaz, Russia"]
[Date "2021.01.07"]
[Round "7.2"]
[White "Tandelov, Arseny"]
[Black "Agkatsev, Felix A"]
[Result "1-0"]
[TimeControl "90+30"]
[WhiteElo "1657"]
[BlackElo "1338"]

1. d4 {[%clk 01:30:56]} {[%emt 00:00:03]} Nf6 {[%clk 01:30:56]} {[%emt
00:00:05]} 2. c4 {[%clk 01:31:19]} {[%emt 00:00:07]} e6 {[%clk 01:31:21]}
{[%emt 00:00:05]} 3. Nc3 {[%clk 01:31:43]} {[%emt 00:00:06]} b6 {[%clk
01:31:44]} {[%emt 00:00:07]} 4. e4 {[%clk 01:32:08]} {[%emt 00:00:04]} Bb7
{[%clk 01:29:12]} {[%emt 00:03:02]} 5. Qc2 {[%clk 01:32:21]} {[%emt 00:00:18]}
c5 {[%clk 01:28:39]} {[%emt 00:01:02]} 6. d5 {[%clk 01:31:36]} {[%emt
00:01:15]} d6 {[%clk 01:29:02]} {[%emt 00:00:07]} 7. Bd3 {[%clk 01:30:56]}
{[%emt 00:01:10]} Be7 {[%clk 01:29:09]} {[%emt 00:00:23]} 8. Nge2 {[%clk
01:31:15]} {[%emt 00:00:10]} Nbd7 {[%clk 01:29:24]} {[%emt 00:00:15]} 9. O-O
{[%clk 01:30:52]} {[%emt 00:00:53]} Ne5 {[%clk 01:27:10]} {[%emt 00:02:44]} 10.
f4 {[%clk 01:30:28]} {[%emt 00:00:54]} Nxd3 {[%clk 01:27:36]} {[%emt 00:00:04]}
11. Qxd3 {[%clk 01:30:50]} {[%emt 00:00:08]} exd5 {[%clk 01:27:37]} {[%emt
00:00:29]} 12. exd5 {[%clk 01:31:13]} {[%emt 00:00:07]} O-O {[%clk 01:18:32]}
{[%emt 00:09:36]} 13. Ng3 {[%clk 01:31:09]} {[%emt 00:00:34]} Re8 {[%clk
01:18:38]} {[%emt 00:00:24]} 14. b3 {[%clk 01:25:43]} {[%emt 00:05:56]} Bf8
{[%clk 01:10:20]} {[%emt 00:08:47]} 15. Nce4 {[%clk 01:18:21]} {[%emt
00:07:52]} Nxe4 {[%clk 00:58:17]} {[%emt 00:12:34]} 16. Nxe4 {[%clk 01:18:31]}
{[%emt 00:00:19]} Qe7 {[%clk 00:58:05]} {[%emt 00:00:42]} 17. Ng5 {[%clk
01:18:35]} {[%emt 00:00:27]} g6 {[%clk 00:57:45]} {[%emt 00:00:51]} 18. f5
{[%clk 01:17:33]} {[%emt 00:01:32]} Bg7 {[%clk 00:57:45]} {[%emt 00:00:29]} 19.
fxg6 {[%clk 01:17:03]} {[%emt 00:01:01]} fxg6 {[%clk 00:56:35]} {[%emt
00:01:39]} 20. Rb1 {[%clk 01:16:09]} {[%emt 00:01:24]} Bc8 {[%clk 00:54:38]}
{[%emt 00:02:27]} 21. Bf4 {[%clk 01:02:32]} {[%emt 00:14:06]} Bf5 {[%clk
00:46:40]} {[%emt 00:08:27]} 22. Qg3 {[%clk 01:02:55]} {[%emt 00:00:07]} Bxb1
{[%clk 00:45:22]} {[%emt 00:01:49]} 23. Rxb1 {[%clk 01:03:02]} {[%emt
00:00:23]} Bd4+ {[%clk 00:43:15]} {[%emt 00:02:36]} 24. Kh1 {[%clk 01:03:22]}
{[%emt 00:00:09]} Be5 {[%clk 00:42:45]} {[%emt 00:01:02]} 25. Ne6 {[%clk
01:03:35]} {[%emt 00:00:17]} Bxf4 {[%clk 00:39:25]} {[%emt 00:03:50]} 26. Qxf4
{[%clk 01:03:56]} {[%emt 00:00:08]} a6 {[%clk 00:35:43]} {[%emt 00:04:12]} 27.
h4 {[%clk 01:03:34]} {[%emt 00:00:52]} Ra7 {[%clk 00:34:07]} {[%emt 00:02:07]}
28. Re1 {[%clk 01:02:23]} {[%emt 00:01:41]} Rd7 {[%clk 00:31:30]} {[%emt
00:03:08]} 29. Re3 {[%clk 00:59:43]} {[%emt 00:03:09]} Qf7 {[%clk 00:29:51]}
{[%emt 00:02:09]} 30. Qh6 {[%clk 00:59:50]} {[%emt 00:00:23]} Rde7 {[%clk
00:27:19]} {[%emt 00:03:03]} 31. Rf3 {[%clk 01:00:01]} {[%emt 00:00:19]} Rxe6
{[%clk 00:26:46]} {[%emt 00:01:02]} 32. Rxf7 {[%clk 01:00:24]} {[%emt
00:00:07]} Re1+ {[%clk 00:27:06]} {[%emt 00:00:10]} 33. Kh2 {[%clk 01:00:51]}
{[%emt 00:00:04]} Kxf7 {[%clk 00:27:03]} {[%emt 00:00:32]} 34. Qxh7+ {[%clk
01:01:16]} {[%emt 00:00:05]} Kf6 {[%clk 00:27:30]} {[%emt 00:00:04]} 35. Qd7
{[%clk 01:01:40]} {[%emt 00:00:05]} R8e4 {[%clk 00:26:06]} {[%emt 00:01:55]} 36.
Qxd6+ {[%clk 01:02:01]} {[%emt 00:00:08]} Kg7 {[%clk 00:26:18]} {[%emt
00:00:18]} 37. Qc7+ {[%clk 01:00:26]} {[%emt 00:02:05]} Kh6 {[%clk 00:26:17]}
{[%emt 00:00:31]} 38. Qd8 {[%clk 00:59:19]} {[%emt 00:01:38]} Kg7 {[%clk
00:26:29]} {[%emt 00:00:18]} 39. Kh3 {[%clk 00:59:14]} {[%emt 00:00:33]} R4e3+
{[%clk 00:26:09]} {[%emt 00:00:52]} 40. g3 {[%clk 00:59:35]} {[%emt 00:00:08]}
Rh1+ {[%clk 00:26:05]} {[%emt 00:00:35]} 41. Kg2 {[%clk 00:59:54]} {[%emt
00:00:11]} Rd1 {[%clk 00:25:31]} {[%emt 00:01:04]} 42. Qxb6 {[%clk 01:00:07]}
{[%emt 00:00:17]} Rd2+ {[%clk 00:24:01]} {[%emt 00:01:59]} 43. Kh3 {[%clk
01:00:26]} {[%emt 00:00:10]} Rxa2 {[%clk 00:24:26]} {[%emt 00:00:07]} 44. d6
{[%clk 01:00:00]} {[%emt 00:00:56]} Rd2 {[%clk 00:22:45]} {[%emt 00:02:10]} 45.
Qxc5 {[%clk 01:00:00]} {[%emt 00:00:30]} Rxb3 {[%clk 00:20:46]} {[%emt
00:02:29]} 46. Qe5+ {[%clk 00:59:59]} {[%emt 00:00:27]} Kg8 {[%clk 00:20:39]}
{[%emt 00:00:40]} 47. c5 {[%clk 01:00:18]} {[%emt 00:00:11]} Rbd3 {[%clk
00:20:24]} {[%emt 00:00:45]} 48. c6 {[%clk 01:00:32]} {[%emt 00:00:16]} Rxd6
{[%clk 00:20:16]} {[%emt 00:00:38]} 49. c7 {[%clk 01:01:00]} {[%emt 00:00:03]}
Rd8 {[%clk 00:19:57]} {[%emt 00:00:48]} 50. Qe6+ {[%clk 01:01:19]} {[%emt
00:00:10]} 1-0

[Event "Championship of RSO-Alania 2020"]
[Site "Vladikavkaz, Russia"]
[Date "2021.01.07"]
[Round "7.3"]
[White "Dzhibilov, David"]
[Black "Bogov, Khetag"]
[Result "0-1"]
[TimeControl "90+30"]
[WhiteElo "1363"]
[BlackElo "1263"]

1. g3 {[%clk 01:30:48]} {[%emt 00:00:12]} Nf6 {[%clk 01:30:33]} {[%emt
00:00:27]} 2. Bg2 {[%clk 01:31:13]} {[%emt 00:00:04]} d5 {[%clk 01:30:58]}
{[%emt 00:00:05]} 3. d4 {[%clk 01:31:41]} {[%emt 00:00:02]} g6 {[%clk
01:31:21]} {[%emt 00:00:07]} 4. Nf3 {[%clk 01:31:35]} {[%emt 00:00:36]} Bg7
{[%clk 01:31:38]} {[%emt 00:00:13]} 5. c4 {[%clk 01:31:41]} {[%emt 00:00:24]}
c6 {[%clk 01:32:04]} {[%emt 00:00:04]} 6. O-O {[%clk 01:31:10]} {[%emt
00:01:00]} O-O {[%clk 01:32:25]} {[%emt 00:00:09]} 7. Nc3 {[%clk 01:31:34]}
{[%emt 00:00:06]} b6 {[%clk 01:31:29]} {[%emt 00:01:26]} 8. Qb3 {[%clk
01:31:38]} {[%emt 00:00:27]} Bb7 {[%clk 01:30:26]} {[%emt 00:01:33]} 9. Ne5
{[%clk 01:30:38]} {[%emt 00:01:29]} e6 {[%clk 01:29:49]} {[%emt 00:01:06]} 10.
Bg5 {[%clk 01:28:36]} {[%emt 00:02:33]} Nbd7 {[%clk 01:27:03]} {[%emt
00:03:17]} 11. cxd5 {[%clk 01:27:37]} {[%emt 00:01:29]} exd5 {[%clk 01:26:58]}
{[%emt 00:00:35]} 12. Bh3 {[%clk 01:27:56]} {[%emt 00:00:11]} Qc7 {[%clk
01:26:12]} {[%emt 00:01:15]} 13. Bf4 {[%clk 01:27:23]} {[%emt 00:01:03]} Nxe5
{[%clk 01:25:39]} {[%emt 00:01:04]} 14. Bxe5 {[%clk 01:23:13]} {[%emt
00:04:39]} Qe7 {[%clk 01:25:51]} {[%emt 00:00:17]} 15. Bg2 {[%emt 00:03:55]}
Nh5 {[%clk 01:21:03]} {[%emt 00:02:00]} 16. Bxg7 {[%clk 01:22:48]} {[%emt
00:00:49]} Nxg7 {[%clk 01:21:13]} {[%emt 00:00:20]} 17. Rfe1 {[%clk 01:22:59]}
{[%emt 00:00:19]} Ne6 {[%clk 01:20:31]} {[%emt 00:01:12]} 18. Rad1 {[%clk
01:22:16]} {[%emt 00:01:13]} f5 {[%clk 01:19:13]} {[%emt 00:01:49]} 19. e4
{[%clk 01:01:24]} {[%emt 00:21:22]} fxe4 {[%clk 01:19:08]} {[%emt 00:00:35]} 20.
Nxe4 {[%clk 01:01:52]} {[%emt 00:00:02]} dxe4 {[%clk 01:12:56]} {[%emt
00:06:43]} 21. Rxe4 {[%clk 01:02:14]} {[%emt 00:00:08]} Rf6 {[%clk 01:13:15]}
{[%emt 00:00:11]} 22. Bh3 {[%clk 00:59:29]} {[%emt 00:03:14]} Re8 {[%clk
01:12:44]} {[%emt 00:01:00]} 23. Rde1 {[%clk 00:59:58]} Bc8 {[%clk 01:12:43]}
{[%emt 00:00:33]} 24. g4 {[%clk 01:00:03]} {[%emt 00:00:26]} g5 {[%clk
01:12:30]} {[%emt 00:00:44]} 25. f4 {[%clk 01:00:19]} {[%emt 00:00:14]} gxf4
{[%clk 01:12:42]} {[%emt 00:00:18]} 26. g5 {[%clk 00:58:39]} {[%emt 00:02:10]}
Rg6 {[%clk 01:12:23]} {[%emt 00:00:49]} 27. Kf2 {[%clk 00:59:08]} Qxg5 {[%clk
01:12:12]} {[%emt 00:00:41]} 28. R1e2 {[%clk 00:54:26]} {[%emt 00:05:13]} Qg1+
{[%clk 01:12:00]} {[%emt 00:00:42]} 29. Kf3 {[%clk 00:54:51]} {[%emt 00:00:05]}
Rg3+ {[%clk 01:11:51]} {[%emt 00:00:39]} 0-1

[Event "Championship of RSO-Alania 2020"]
[Site "Vladikavkaz, Russia"]
[Date "2021.01.07"]
[Round "7.4"]
[White "Hastsaev, Marat"]
[Black "Edziev, Vladimir"]
[Result "1-0"]
[TimeControl "90+30"]
[WhiteElo "2007"]
[BlackElo "1478"]

1. e4 {[%clk 01:30:30]} {[%emt 20:10:28]} e5 {[%clk 01:30:30]} {[%emt
00:00:13]} 2. Nf3 {[%clk 01:30:30]} {[%emt 00:00:05]} d6 {[%clk 01:30:30]}
{[%emt 00:00:06]} 3. d4 {[%clk 01:30:30]} {[%emt 00:00:07]} exd4 {[%clk
01:30:30]} {[%emt 00:00:07]} 4. Nxd4 {[%clk 01:30:30]} {[%emt 00:00:05]} Nf6
{[%clk 01:30:30]} {[%emt 00:00:06]} 5. Nc3 {[%clk 01:30:28]} {[%emt 00:00:46]}
Be7 {[%clk 01:30:53]} {[%emt 00:00:06]} 6. Bf4 {[%clk 01:30:06]} {[%emt
00:00:53]} O-O {[%clk 01:31:04]} {[%emt 00:00:20]} 7. Qd2 {[%clk 01:29:48]}
{[%emt 00:00:48]} Nc6 {[%clk 01:30:22]} {[%emt 00:01:11]} 8. O-O-O {[%clk
01:28:21]} {[%emt 00:01:58]} Nxd4 {[%clk 01:30:46]} {[%emt 00:00:06]} 9. Qxd4
{[%clk 01:28:46]} {[%emt 00:00:05]} a6 {[%clk 01:31:04]} {[%emt 00:00:12]} 10.
f3 {[%clk 01:28:26]} {[%emt 00:00:50]} b5 {[%clk 01:31:13]} {[%emt 00:00:21]}
11. g4 {[%clk 01:28:10]} {[%emt 00:00:46]} c5 {[%clk 01:30:48]} {[%emt
00:00:55]} 12. Qd2 {[%clk 01:27:39]} {[%emt 00:01:01]} b4 {[%clk 01:30:20]}
{[%emt 00:00:58]} 13. Nd5 {[%clk 01:26:40]} {[%emt 00:01:29]} Nxd5 {[%clk
01:30:27]} {[%emt 00:00:22]} 14. exd5 {[%emt 00:01:05]} Bd7 {[%emt 00:02:08]}
15. h4 {[%clk 01:23:13]} {[%emt 00:00:44]} Bb5 {[%clk 01:30:15]} {[%emt
00:00:43]} 16. g5 {[%clk 01:22:25]} {[%emt 00:01:19]} Bxf1 {[%clk 01:24:48]}
{[%emt 00:05:44]} 17. Rdxf1 {[%clk 01:22:45]} {[%emt 00:00:22]} Qa5 {[%clk
01:20:30]} {[%emt 00:04:48]} 18. Kb1 {[%clk 01:23:02]} {[%emt 00:00:13]} c4
{[%clk 01:20:33]} {[%emt 00:00:27]} 19. Re1 {[%clk 01:20:56]} {[%emt 00:02:36]}
Rfe8 {[%clk 01:19:38]} {[%emt 00:01:25]} 20. Re4 {[%clk 01:19:09]} {[%emt
00:02:17]} c3 {[%clk 01:19:45]} {[%emt 00:00:23]} 21. Qd4 {[%clk 01:19:16]}
{[%emt 00:00:24]} Bf8 {[%clk 01:19:13]} {[%emt 00:01:02]} 22. h5 {[%clk
01:12:18]} {[%emt 00:07:28]} Rxe4 {[%clk 01:13:57]} {[%emt 00:05:46]} 23. Qxe4
{[%clk 01:11:05]} {[%emt 00:01:43]} Qb5 {[%clk 01:12:08]} {[%emt 00:02:19]} 24.
g6 {[%clk 01:09:05]} {[%emt 00:02:30]} Qe8 {[%clk 01:09:41]} {[%emt 00:02:57]}
25. gxh7+ {[%clk 00:57:25]} {[%emt 00:12:10]} Kh8 {[%clk 01:10:09]} {[%emt
00:00:01]} 26. Qxb4 {[%clk 00:57:53]} {[%emt 00:00:04]} cxb2 {[%emt 00:04:24]}
27. h6 {[%emt 00:03:58]} gxh6 {[%clk 00:57:27]} {[%emt 00:04:50]} 28. Bxh6
{[%clk 00:54:16]} {[%emt 00:04:07]} Bxh6 {[%clk 00:53:58]} {[%emt 00:03:58]} 29.
Rxh6 {[%clk 00:54:38]} {[%emt 00:00:08]} Qe5 {[%clk 00:49:12]} {[%emt
00:05:17]} 30. Qxd6 {[%clk 00:53:18]} {[%emt 00:01:50]} Qxd6 {[%clk 00:49:23]}
{[%emt 00:00:19]} 31. Rxd6 {[%clk 00:53:43]} {[%emt 00:00:05]} Kxh7 {[%clk
00:49:52]} 32. Kxb2 {[%emt 00:00:18]} Kg7 {[%emt 00:00:10]} 33. c4 {[%clk
00:53:25]} {[%emt 00:00:19]} Kf8 {[%clk 00:50:20]} {[%emt 00:00:01]} 34. Kc3
{[%emt 00:00:26]} Ke7 {[%emt 00:00:02]} 35. c5 {[%clk 00:53:02]} {[%emt
00:00:25]} a5 {[%clk 00:50:37]} {[%emt 00:00:13]} 36. Rb6 {[%clk 00:53:03]}
{[%emt 00:00:29]} Ra7 {[%clk 00:50:43]} {[%emt 00:00:24]} 37. a4 {[%clk
00:52:52]} {[%emt 00:00:41]} Kd7 {[%clk 00:50:48]} {[%emt 00:00:26]} 38. Kc4
{[%clk 00:53:04]} {[%emt 00:00:18]} f6 {[%emt 00:01:00]} 1-0

[Event "Championship of RSO-Alania 2020"]
[Site "Vladikavkaz, Russia"]
[Date "2021.01.07"]
[Round "7.5"]
[White "Shkurupiy, Konstantin"]
[Black "Agkatsev, Albert A"]
[Result "0-1"]
[TimeControl "90+30"]
[WhiteElo "1592"]
[BlackElo "1550"]

1. e4 {[%clk 01:27:58]} {[%emt 00:03:02]} c5 {[%clk 01:30:45]} {[%emt
00:00:16]} 2. Nf3 {[%clk 01:28:13]} {[%emt 00:00:14]} Nc6 {[%clk 01:30:57]}
{[%emt 00:00:18]} 3. Bb5 {[%clk 01:28:33]} {[%emt 00:00:10]} d6 {[%clk
01:31:15]} {[%emt 00:00:12]} 4. O-O {[%clk 01:28:51]} {[%emt 00:00:12]} Bd7
{[%clk 01:31:33]} {[%emt 00:00:13]} 5. c3 {[%clk 01:28:59]} {[%emt 00:00:22]}
Nf6 {[%clk 01:31:39]} {[%emt 00:00:24]} 6. Re1 {[%clk 01:29:21]} {[%emt
00:00:08]} g6 {[%clk 01:31:39]} {[%emt 00:00:30]} 7. h3 {[%clk 01:29:31]}
{[%emt 00:00:19]} Bg7 {[%clk 01:31:55]} {[%emt 00:00:15]} 8. d4 {[%clk
01:29:43]} {[%emt 00:00:18]} cxd4 {[%clk 01:32:19]} {[%emt 00:00:06]} 9. cxd4
{[%clk 01:30:06]} {[%emt 00:00:07]} O-O {[%clk 01:32:29]} {[%emt 00:00:20]} 10.
Nc3 {[%clk 01:30:19]} {[%emt 00:00:16]} Rc8 {[%clk 01:32:34]} {[%emt 00:00:26]}
11. Bg5 {[%clk 01:28:22]} {[%emt 00:02:27]} a6 {[%clk 01:32:27]} {[%emt
00:00:38]} 12. Bf1 {[%clk 01:28:24]} {[%emt 00:00:28]} h6 {[%clk 01:31:09]}
{[%emt 00:01:48]} 13. Bf4 {[%clk 01:25:51]} {[%emt 00:03:02]} Qb6 {[%clk
01:28:33]} {[%emt 00:03:06]} 14. e5 {[%clk 01:19:21]} {[%emt 00:07:01]} Nh5
{[%clk 01:27:02]} {[%emt 00:02:00]} 15. Bc1 {[%clk 01:14:44]} {[%emt 00:05:08]}
dxe5 {[%clk 01:26:36]} {[%emt 00:00:57]} 16. g4 {[%clk 01:09:59]} {[%emt
00:05:14]} exd4 {[%clk 01:20:13]} {[%emt 00:06:53]} 17. Nd5 {[%clk 01:06:08]}
{[%emt 00:04:21]} Qc5 {[%clk 01:19:21]} {[%emt 00:01:22]} 18. Nxe7+ {[%clk
01:03:34]} {[%emt 00:03:05]} Nxe7 {[%clk 01:19:27]} {[%emt 00:00:24]} 19. gxh5
{[%clk 01:03:51]} {[%emt 00:00:13]} Bc6 {[%clk 01:18:34]} {[%emt 00:01:23]} 20.
Bf4 {[%clk 01:02:57]} {[%emt 00:01:24]} Qxh5 {[%clk 01:18:13]} {[%emt
00:00:51]} 21. Bg2 {[%clk 01:01:53]} {[%emt 00:01:34]} Nd5 {[%clk 01:16:59]}
{[%emt 00:01:44]} 22. Be5 {[%clk 01:00:14]} {[%emt 00:02:09]} Nf6 {[%clk
01:05:36]} {[%emt 00:11:53]} 23. Nxd4 {[%clk 00:54:48]} {[%emt 00:05:56]} Bxg2
{[%clk 01:04:40]} {[%emt 00:01:27]} 24. Qxh5 {[%clk 00:52:50]} {[%emt
00:02:27]} Nxh5 {[%clk 01:04:43]} {[%emt 00:00:27]} 25. Kxg2 {[%clk 00:51:37]}
{[%emt 00:01:43]} Bxe5 {[%clk 01:03:25]} {[%emt 00:01:48]} 26. Rxe5 {[%clk
00:47:28]} {[%emt 00:04:39]} Rfd8 {[%clk 01:03:05]} {[%emt 00:00:50]} 27. Nf3
{[%clk 00:46:24]} {[%emt 00:01:34]} Rc2 {[%clk 01:03:01]} {[%emt 00:00:34]} 28.
b4 {[%clk 00:45:20]} {[%emt 00:01:33]} Nf4+ {[%clk 01:00:02]} {[%emt 00:03:29]}
29. Kg3 {[%clk 00:44:20]} {[%emt 00:01:31]} g5 {[%clk 01:00:05]} {[%emt
00:00:28]} 30. Re7 {[%clk 00:42:18]} {[%emt 00:02:32]} Rd3 {[%clk 00:59:59]}
{[%emt 00:00:35]} 31. Rae1 {[%clk 00:41:15]} {[%emt 00:01:33]} Nxh3 {[%clk
00:59:17]} {[%emt 00:01:13]} 32. R1e3 {[%clk 00:39:05]} {[%emt 00:02:39]} Nxf2
{[%clk 00:58:52]} {[%emt 00:00:55]} 33. Rxd3 {[%clk 00:39:02]} {[%emt
00:00:33]} Nxd3 {[%clk 00:59:20]} {[%emt 00:00:02]} 34. Rxb7 {[%clk 00:39:07]}
{[%emt 00:00:26]} Rxa2 {[%clk 00:59:33]} {[%emt 00:00:17]} 35. b5 {[%clk
00:39:09]} {[%emt 00:00:27]} axb5 {[%clk 00:59:51]} {[%emt 00:00:13]} 36. Rxb5
{[%clk 00:39:36]} {[%emt 00:00:03]} Rb2 {[%clk 00:59:48]} {[%emt 00:00:32]} 37.
Rd5 {[%clk 00:38:55]} {[%emt 00:01:11]} Rg2+ {[%clk 01:00:03]} {[%emt
00:00:15]} 0-1

[Event "Championship of RSO-Alania 2020"]
[Site "Vladikavkaz, Russia"]
[Date "2021.01.07"]
[Round "7.6"]
[White "Tsamalaidze, Liana"]
[Black "Bibilov, Alan"]
[Result "1-0"]
[TimeControl "90+30"]
[WhiteElo "1446"]
[BlackElo "1073"]

1. d4 {[%clk 01:30:59]} {[%emt 00:08:00]} d5 {[%clk 01:30:51]} {[%emt
00:00:09]} 2. Nf3 {[%clk 01:31:23]} {[%emt 00:00:07]} Nf6 {[%clk 01:31:13]}
{[%emt 00:00:08]} 3. e3 {[%clk 01:31:48]} {[%emt 00:00:05]} e6 {[%clk
01:31:36]} {[%emt 00:00:07]} 4. b3 {[%clk 01:32:13]} {[%emt 00:00:05]} c5
{[%clk 01:31:51]} {[%emt 00:00:15]} 5. Bb2 {[%clk 01:32:38]} {[%emt 00:00:05]}
b6 {[%clk 01:31:59]} {[%emt 00:00:22]} 6. Bd3 {[%clk 01:33:02]} {[%emt
00:00:06]} Bb7 {[%clk 01:32:20]} {[%emt 00:00:10]} 7. O-O {[%clk 01:33:25]}
{[%emt 00:00:07]} Bd6 {[%clk 01:32:33]} {[%emt 00:00:17]} 8. Ne5 {[%clk
01:33:51]} {[%emt 00:00:05]} O-O {[%clk 01:32:43]} {[%emt 00:00:19]} 9. f4
{[%clk 01:34:19]} {[%emt 00:00:02]} Nc6 {[%clk 01:32:55]} {[%emt 00:00:17]} 10.
Nd2 {[%clk 01:34:36]} {[%emt 00:00:14]} Rc8 {[%clk 01:33:03]} {[%emt 00:00:21]}
11. g4 {[%clk 01:33:19]} {[%emt 00:01:48]} Ne7 {[%clk 01:30:54]} {[%emt
00:02:39]} 12. g5 {[%clk 01:31:57]} {[%emt 00:01:52]} Ne4 {[%clk 01:30:52]}
{[%emt 00:00:32]} 13. Ng4 {[%clk 01:28:35]} {[%emt 00:03:52]} Qc7 {[%clk
01:27:26]} {[%emt 00:03:56]} 14. h4 {[%clk 01:27:14]} {[%emt 00:01:51]} Nxd2
{[%clk 01:27:21]} {[%emt 00:00:35]} 15. Bxh7+ {[%clk 01:22:01]} {[%emt
00:05:43]} Kxh7 {[%clk 01:23:35]} {[%emt 00:04:16]} 16. Nf6+ {[%clk 01:22:20]}
{[%emt 00:00:11]} gxf6 {[%clk 01:23:22]} {[%emt 00:00:42]} 17. Qh5+ {[%clk
01:22:46]} {[%emt 00:00:04]} Kg8 {[%clk 01:22:41]} {[%emt 00:01:09]} 18. gxf6
{[%clk 01:23:07]} {[%emt 00:00:10]} Nf5 {[%clk 01:23:00]} {[%emt 00:00:12]} 19.
Kh2 {[%clk 01:23:19]} {[%emt 00:00:18]} 1-0